bitfinex/quotes_ETHUSD_20220220
["timestamp","ask_amount","ask_price","bid_price","bid_amount"]
[1645349378475,0.754,2616.7,2616.1,0.00800918]
[1645349378674,0.38966805,2616.8,2616.1,0.00800918]
[1645349378875,0.19866805,2616.8,2616.1,0.00800918]
[1645349379119,3.5,2617.4,2616.0,1.18396981]
[1645349379314,0.49865235,2617.3,2616.0,1.18396981]
[1645349379517,0.49865235,2617.3,2616.1,0.00141343]
[1645349379721,0.49865235,2617.3,2616.7,1.13735857]
[1645349380117,0.49865235,2617.3,2615.9,0.00800979]
[1645349380317,0.49865235,2617.3,2615.7,0.0136072]
[1645349380520,0.19865235,2617.3,2615.7,0.2046072]
[1645349380716,0.19865235,2617.3,2616.5,0.00632219]
[1645349380915,0.49865235,2617.3,2616.5,0.00632219]
[1645349381115,0.19865235,2617.3,2616.5,0.00632219]
[1645349381314,0.97475509,2617.1,2616.5,0.00632219]
[1645349381517,0.97475509,2617.1,2615.8,0.00141343]
[1645349381518,1.57475509,2617.1,2615.8,0.00141343]
[1645349381917,0.645,2617.0,2616.4,0.00800841]
[1645349382616,0.645,2617.0,2616.5,1.15874814]
[1645349382886,0.454,2617.0,2616.5,1.15874814]
[1645349383575,1.6,2617.1,2616.5,1.15874814]
[1645349383978,1.0,2617.1,2616.5,1.15874814]
[1645349385781,0.6,2617.2,2616.5,1.15874814]
[1645349386178,0.3,2617.2,2616.5,1.15874814]
[1645349386624,0.79865235,2617.3,2616.5,1.15874814]
[1645349386823,1.92234534,2617.3,2616.5,1.15874814]
[1645349387032,0.191,2617.2,2616.5,1.15874814]
[1645349387320,0.191,2617.2,2616.3,0.00800856]
[1645349387321,1.14762,2617.2,2616.3,0.00800856]
[1645349387521,1.14762,2617.2,2616.0,0.00141343]
[1645349387721,1.191,2617.2,2616.0,0.00141343]
[1645349387921,1.0,2617.2,2616.3,0.00195343]
[1645349388131,0.79865235,2617.3,2616.3,0.00195343]
[1645349388722,0.49865235,2617.3,2616.1,3.5]
[1645349389122,0.49865235,2617.3,2616.0,0.00141343]
[1645349389123,1.17874615,2617.2,2616.3,0.00800872]
[1645349389327,1.14768,2617.1,2616.3,0.00800872]
[1645349389524,0.454,2617.0,2616.3,0.00800872]
[1645349389722,0.754,2617.0,2616.3,0.00800872]
[1645349389923,0.754,2617.0,2616.0,0.00141343]
[1645349390224,0.3,2616.8,2616.2,0.91865839]
[1645349390469,2.054,2617.0,2616.2,0.91865839]
[1645349390775,2.054,2617.0,2616.2,0.91718178]
[1645349391167,1.054,2617.0,2616.2,0.91718178]
[1645349391369,3.22666382,2617.0,2616.2,0.91718178]
[1645349391667,2.22666382,2617.0,2616.2,0.91718178]
[1645349391867,1.0,2616.9,2616.2,0.91718178]
[1645349392069,1.454,2616.9,2616.2,0.91718178]
[1645349392269,0.454,2616.9,2616.2,0.91718178]
[1645349392573,1.754,2616.9,2616.2,0.91718178]
[1645349392769,0.754,2616.9,2616.2,0.91718178]
[1645349392970,1.754,2616.9,2616.2,0.91718178]
[1645349393171,1.754,2616.9,2616.0,0.00942292]
[1645349393378,0.754,2616.9,2616.0,0.00942292]
[1645349393571,0.754,2616.9,2615.6,4.6922]
[1645349393572,1.754,2616.9,2615.7,0.00141343]
[1645349393772,1.754,2616.9,2615.7,1.62709853]
[1645349393971,1.754,2616.9,2615.9,0.00800979]
[1645349394216,0.754,2616.9,2615.9,0.00800979]
[1645349394417,1.754,2616.9,2615.9,0.00800979]
[1645349394616,0.754,2616.9,2616.3,0.90110893]
[1645349394817,1.754,2616.9,2616.3,0.90110893]
[1645349395022,0.754,2616.9,2616.3,0.90110893]
[1645349395218,1.754,2616.9,2616.3,0.90110893]
[1645349395420,1.754,2616.9,2615.9,0.00800994]
[1645349395621,1.945,2616.9,2615.9,0.00800994]
[1645349395819,0.95682,2616.7,2615.9,0.00800994]
[1645349396122,0.454,2616.6,2615.6,0.00141343]
[1645349396318,0.454,2616.6,2615.9,0.00800994]
[1645349396516,1.09357192,2616.4,2615.9,0.00800994]
[1645349396717,0.454,2616.6,2615.9,0.00942337]
[1645349397317,0.454,2616.6,2615.9,0.00141343]
[1645349397719,0.89015682,2616.5,2615.9,0.00141343]
[1645349398162,1.19015682,2616.5,2615.9,0.00141343]
[1645349398363,1.49015682,2616.5,2615.9,0.00141343]
[1645349399468,0.6,2616.5,2615.9,0.00141343]
[1645349399663,1.454,2616.6,2615.9,0.00141343]
[1645349399867,0.95682,2616.7,2615.9,0.00141343]
[1645349400063,1.95682,2616.7,2615.9,0.00141343]
[1645349400264,1.25682,2616.7,2615.9,0.00141343]
[1645349400464,2.24246918,2616.7,2615.9,0.00141343]
[1645349400965,2.24246918,2616.7,2616.2,0.91546428]
[1645349401625,3.24246918,2616.7,2616.2,0.91546428]
[1645349401826,1.0,2616.6,2616.2,0.91546428]
[1645349402228,1.25682,2616.7,2616.2,0.91546428]
[1645349402630,1.55682,2616.7,2616.2,0.91546428]
[1645349402830,1.55682,2616.7,2616.2,0.87392441]
[1645349403028,0.95682,2616.7,2616.2,0.87392441]
[1645349403731,1.55682,2616.7,2615.9,0.00728891]
[1645349403939,1.25682,2616.7,2615.9,0.00728891]
[1645349404131,0.3,2616.6,2615.9,0.00728891]
[1645349404330,1.55682,2616.7,2615.9,0.00728891]
[1645349404533,1.1851392,2616.6,2615.9,0.89706435]
[1645349404932,2.1851392,2616.6,2615.9,0.89706435]
[1645349405132,1.0,2616.6,2615.9,0.89706435]
[1645349405364,1.55682,2616.7,2615.9,0.89706435]
[1645349406268,2.5866357,2616.7,2616.3,1.05696842]
[1645349406482,2.5866357,2616.7,2615.7,0.00870289]
[1645349406483,0.6,2616.7,2615.7,0.00870289]
[1645349406668,1.454,2616.6,2615.7,0.00870289]
[1645349406870,0.945,2616.6,2615.7,0.00141343]
[1645349407071,0.3,2616.5,2615.7,0.00141343]
[1645349407266,0.454,2616.4,2615.7,0.00942398]
[1645349407668,0.754,2616.4,2615.7,0.00942398]
[1645349407866,2.13085767,2616.3,2615.7,0.00942398]
[1645349408069,0.454,2616.2,2615.7,0.00141343]
[1645349408268,0.454,2616.2,2615.6,0.97932005]
[1645349408467,1.754,2616.2,2615.6,0.97932005]
[1645349409127,1.754,2616.2,2615.6,0.59652005]
[1645349409322,1.754,2616.2,2615.9,1.5612859]
[1645349409521,1.454,2616.2,2615.9,1.5612859]
[1645349409724,1.754,2616.2,2615.9,1.5612859]
[1645349409921,0.754,2616.2,2615.9,1.5612859]
[1645349410127,1.754,2616.2,2615.9,1.5612859]
[1645349410522,0.754,2616.2,2615.9,1.5612859]
[1645349410725,1.754,2616.2,2615.9,1.5612859]
[1645349411731,1.454,2616.2,2615.9,1.5612859]
[1645349411925,1.454,2616.6,2615.9,1.5612859]
[1645349412123,1.19979883,2616.5,2615.9,1.5612859]
[1645349412325,0.79979883,2616.5,2615.9,1.5612859]
[1645349412524,0.49979883,2616.5,2615.9,1.5612859]
[1645349412725,0.79979883,2616.5,2616.3,1.06352795]
[1645349413174,0.49979883,2616.5,2616.3,1.06352795]
[1645349413369,0.79979883,2616.5,2616.3,1.06352795]
[1645349414178,0.49979883,2616.5,2616.3,1.06352795]
[1645349414377,0.79979883,2616.5,2616.3,1.06352795]
[1645349414573,0.79979883,2616.5,2616.4,1.5612859]
[1645349414775,0.49979883,2616.5,2616.4,1.5612859]
[1645349415273,0.19979883,2616.5,2616.4,1.5612859]
[1645349418121,1.10175897,2616.5,2616.4,1.5612859]
[1645349418324,1.40175897,2616.5,2616.4,1.5612859]
[1645349418531,2.15575897,2616.5,2616.4,1.5612859]
[1645349420874,1.25379883,2616.5,2616.4,1.5612859]
[1645349423481,2.40667898,2616.5,2616.4,1.5612859]
[1645349423880,3.40667898,2616.5,2616.4,1.5612859]
[1645349424133,2.40667898,2616.5,2616.4,1.5612859]
[1645349424325,2.25379883,2616.5,2616.4,1.5612859]
[1645349424629,1.25379883,2616.5,2616.4,1.5612859]
[1645349424824,2.25379883,2616.5,2616.4,1.5612859]
[1645349425124,1.25379883,2616.5,2616.4,1.5612859]
[1645349425325,2.25379883,2616.5,2616.4,1.5612859]
[1645349425525,1.054,2616.5,2616.4,1.5612859]
[1645349425824,2.054,2616.5,2616.4,1.5612859]
[1645349426025,1.054,2616.5,2616.4,1.5612859]
[1645349426224,2.054,2616.5,2616.4,1.5612859]
[1645349426424,1.054,2616.5,2616.4,1.5612859]
[1645349426624,2.054,2616.5,2616.4,1.5612859]
[1645349426826,1.054,2616.5,2616.4,1.5612859]
[1645349427024,2.054,2616.5,2616.4,1.5612859]
[1645349427424,1.054,2616.5,2616.4,1.5612859]
[1645349427624,2.054,2616.5,2616.4,1.5612859]
[1645349427894,1.054,2616.5,2616.4,1.5612859]
[1645349431493,1.054,2616.5,2616.4,1.55969794]
[1645349431724,0.454,2616.5,2616.4,0.78064295]
[1645349432121,0.454,2616.5,2616.4,1.55969794]
[1645349432922,0.754,2616.5,2616.4,1.55969794]
[1645349433127,1.054,2616.5,2616.4,1.55969794]
[1645349442322,0.191,2616.9,2616.5,21.5]
[1645349442527,6.415421,2617.2,2616.5,21.5]
[1645349442528,3.446321,2617.2,2616.5,21.5]
[1645349442883,0.153021,2617.2,2616.8,1.55969794]
[1645349443278,0.153021,2617.2,2616.8,2.43962983]
[1645349443679,8.1842,2617.7,2616.8,2.43962983]
[1645349443881,3.0918,2617.7,2616.8,2.43962983]
[1645349444287,0.191,2618.0,2616.9,3.5]
[1645349444483,0.00251498,2618.1,2617.0,1.62508275]
[1645349444682,0.00251498,2618.1,2617.0,4.36682764]
[1645349444880,0.00251498,2618.1,2617.0,2.74174489]
[1645349445281,0.90294348,2618.6,2617.9,1.11266445]
[1645349445485,7.32,2618.5,2617.9,1.11266445]
[1645349445683,0.00251525,2618.1,2617.9,1.11266445]
[1645349446483,1.492792,2619.4,2617.9,1.11266445]
[1645349446735,1.492792,2619.4,2618.0,3.5]
[1645349446932,1.4225,2619.7,2618.0,3.5]
[1645349446933,0.00251563,2618.1,2618.0,3.5]
[1645349447136,0.00251563,2618.1,2618.0,6.0987]
[1645349447137,1.563e-05,2618.1,2618.0,6.0987]
[1645349447334,1.563e-05,2618.1,2618.0,11.0987]
[1645349447530,1.563e-05,2618.1,2618.0,23.151]
[1645349447733,9.531119,2619.9,2618.0,23.7687]
[1645349447931,9.531119,2619.9,2618.0,6.0987]
[1645349448137,0.1908,2619.8,2618.0,6.0987]
[1645349448333,1.26313094,2619.8,2619.1,1.01171494]
[1645349448534,0.1908,2619.8,2619.1,1.01171494]
[1645349448737,0.1908,2619.8,2619.0,1.55969794]
[1645349448935,1.14649,2619.8,2619.0,1.55969794]
[1645349449534,0.95569,2619.8,2619.0,1.55969794]
[1645349449736,9.531119,2619.9,2619.0,1.55969794]
[1645349449935,1.0,2619.8,2619.2,0.8836367]
[1645349450380,9.47505,2620.2,2619.0,1.55969794]
[1645349450579,0.1907,2620.1,2619.0,1.55969794]
[1645349450787,9.47505,2620.2,2619.0,1.55969794]
[1645349451081,8.27555,2620.2,2619.0,1.55969794]
[1645349451283,7.32,2620.2,2619.7,0.89169937]
[1645349451885,7.92,2620.2,2619.7,0.89169937]
[1645349452387,7.32,2620.2,2619.7,0.89169937]
[1645349452587,1.1818,2620.9,2619.7,0.89169937]
[1645349452588,0.1907,2620.4,2619.7,0.89169937]
[1645349452782,7.5107,2620.8,2619.7,0.89169937]
[1645349452988,0.00253832,2620.1,2619.7,0.89169937]
[1645349453485,0.00253832,2620.1,2619.9,1.55969794]
[1645349453685,0.1907,2620.6,2619.9,1.55969794]
[1645349453885,1.15093852,2620.7,2619.9,1.55969794]
[1645349453886,0.1907,2620.7,2619.9,1.55969794]
[1645349454139,0.00253833,2620.0,2619.9,1.55969794]
[1645349455026,7.32,2620.8,2619.9,1.55969794]
[1645349455229,1.0,2620.7,2620.4,1.15546589]
[1645349455429,7.32,2620.8,2620.4,1.15546589]
[1645349456329,0.00241212,2620.7,2620.4,1.15546589]
[1645349457430,1.47096653,2621.4,2620.4,1.15546589]
[1645349457629,0.00241212,2620.7,2620.0,0.89180446]
[1645349458581,3.6907,2621.7,2620.1,12.0523]
[1645349458779,0.00241212,2620.5,2620.3,5.0]
[1645349458975,0.00241212,2620.5,2620.4,11.67]
[1645349459180,3.5,2621.9,2620.5,0.00482423]
[1645349459382,1.03927353,2621.4,2620.7,0.950895]
[1645349459590,1.03927353,2621.4,2620.5,0.00482423]
[1645349459591,3.5,2621.3,2620.5,0.00482423]
[1645349459783,3.6907,2621.3,2620.5,0.00482423]
[1645349459983,0.08611616,2621.2,2620.5,0.00482423]
[1645349460179,5.0,2621.0,2620.5,0.00482423]
[1645349460378,5.1447,2620.9,2620.5,0.00482423]
[1645349460575,0.89590027,2620.8,2620.5,0.00482423]
[1645349460779,0.6447,2620.7,2620.5,0.00482423]
[1645349460975,0.9447,2620.7,2620.5,0.00482423]
[1645349461376,3.15555,2620.7,2620.5,0.00482423]
[1645349461836,41.0,2620.5,2618.9,0.2654]
[1645349462037,9.1447,2620.4,2618.9,0.2654]
[1645349462233,10.1447,2620.4,2618.9,0.2654]
[1645349462434,0.95566,2620.2,2618.9,0.2654]
[1645349462734,0.95917072,2620.0,2619.3,1.09341682]
[1645349462933,0.1907,2619.9,2618.9,0.2654]
[1645349463134,0.3,2619.9,2618.9,0.2654]
[1645349463933,0.3,2619.9,2619.4,1.55969794]
[1645349466678,0.454,2620.0,2619.4,1.55969794]
[1645349467083,5.3823,2619.9,2619.4,1.55969794]
[1645349467283,0.454,2619.8,2619.4,1.55969794]
[1645349467480,0.95592,2619.6,2619.4,1.55969794]
[1645349467686,1.91195,2619.2,2618.9,0.2654]
[1645349467882,0.454,2619.3,2618.9,0.2654]
[1645349468279,0.754,2619.3,2618.9,0.2654]
[1645349468684,1.054,2619.3,2618.9,0.2654]
[1645349468984,0.98095945,2619.2,2618.9,0.2654]
[1645349469633,0.6,2619.3,2618.9,0.2654]
[1645349469827,0.3,2619.3,2618.7,0.85542292]
[1645349470026,2.054,2619.5,2618.7,0.85542292]
[1645349470228,1.054,2619.5,2618.7,0.85542292]
[1645349470427,2.054,2619.5,2618.7,0.85542292]
[1645349471029,3.23642101,2619.5,2618.7,0.85542292]
[1645349471228,2.23642101,2619.5,2618.7,0.85542292]
[1645349471432,1.0,2619.4,2618.7,0.85542292]
[1645349471631,3.23642101,2619.5,2618.7,0.85542292]
[1645349474875,3.23642101,2619.5,2618.9,0.00764399]
[1645349476079,3.23642101,2619.5,2618.9,0.00131316]
[1645349479030,3.23642101,2619.5,2618.6,1.16571032]
[1645349479235,3.23642101,2619.5,2618.2,0.00175986]
[1645349479430,6.73642101,2619.5,2618.2,0.00175986]
[1645349479832,3.23642101,2619.5,2618.2,0.00175986]
[1645349480033,2.18242101,2619.5,2618.3,16.67]
[1645349480234,3.5,2619.9,2619.0,0.0073677]
[1645349480478,1.1908,2620.3,2619.5,1.73226736]
[1645349480479,1.0,2620.3,2619.5,1.73226736]
[1645349480679,0.6447,2620.4,2619.5,1.73226736]
[1645349481276,1.10531355,2619.9,2619.5,1.73226736]
[1645349481478,3.5,2620.3,2619.5,1.73226736]
[1645349481678,0.6447,2620.4,2619.5,1.73226736]
[1645349481879,5.40013,2620.4,2619.5,1.73226736]
[1645349482082,6.50943,2620.4,2619.5,1.73226736]
[1645349482277,3.00943,2620.4,2619.5,1.73226736]
[1645349482879,0.454,2620.4,2619.5,1.73226736]
[1645349483077,0.91829297,2620.2,2619.5,1.73226736]
[1645349484144,9.531119,2619.9,2619.5,2.74087918]
[1645349484427,9.53012585,2619.9,2619.5,2.74087918]
[1645349484723,9.53012585,2619.9,2619.7,0.00723866]
[1645349487129,1.0,2619.8,2619.7,0.00723866]
[1645349487328,9.53012585,2619.9,2619.7,0.00723866]
[1645349489979,9.53012585,2619.9,2619.5,2.65591573]
[1645349490178,9.53012585,2619.9,2619.6,1.62362518]
[1645349494648,9.53012585,2619.9,2619.5,1.73226736]
[1645349494844,10.13012585,2619.9,2619.7,0.00729823]
[1645349495047,1.0,2619.8,2619.7,0.00729823]
[1645349495243,1.6447,2619.8,2619.7,0.00729823]
[1645349497779,1.454,2619.8,2619.7,0.00729823]
[1645349500031,1.454,2619.8,2619.5,1.73226736]
[1645349500431,0.08691,2619.7,2619.5,1.73226736]
[1645349500631,0.54091,2619.7,2619.5,1.73226736]
[1645349500832,0.754,2619.7,2619.5,1.73226736]
[1645349501034,1.054,2619.7,2619.5,1.73226736]
[1645349504087,0.6,2619.7,2619.5,1.73226736]
[1645349504285,0.3,2619.6,2619.5,1.73226736]
[1645349504682,2.054,2619.8,2619.5,1.73226736]
[1645349505383,1.454,2619.8,2619.5,1.73226736]
[1645349505581,2.054,2619.8,2619.5,1.73226736]
[1645349507134,1.754,2619.8,2619.5,1.73226736]
[1645349507336,2.054,2619.8,2619.5,1.73226736]
[1645349507536,2.054,2619.8,2619.5,1.73131376]
[1645349507742,1.454,2619.8,2619.5,1.73131376]
[1645349507936,1.754,2619.8,2619.5,1.73131376]
[1645349508338,1.454,2619.8,2619.5,1.73131376]
[1645349509243,2.054,2619.8,2619.5,1.73131376]
[1645349509640,1.754,2619.8,2619.5,1.73131376]
[1645349509940,1.754,2619.8,2619.7,0.00732721]
[1645349510385,1.3,2619.8,2619.7,0.00732721]
[1645349511085,1.6,2619.8,2619.7,0.00732721]
[1645349511583,1.3,2619.8,2619.7,0.00732721]
[1645349511983,1.0,2619.8,2619.7,0.00732721]
[1645349512788,2.054,2619.8,2619.7,0.00732721]
[1645349513284,2.2447,2619.8,2619.7,0.00732721]
[1645349514539,2.15039592,2619.8,2619.7,0.00732721]
[1645349514738,2.15039592,2619.8,2619.5,1.73131376]
[1645349515140,0.09639592,2619.6,2619.5,1.73131376]
[1645349515439,0.55039592,2619.6,2619.5,1.73131376]
[1645349517042,0.85039592,2619.6,2619.5,1.73131376]
[1645349517243,4.65039592,2619.6,2619.5,1.73131376]
[1645349517643,5.65039592,2619.6,2619.5,1.73131376]
[1645349519686,5.80327692,2619.6,2619.5,1.73131376]
[1645349520085,5.65039592,2619.6,2619.5,1.73131376]
[1645349520387,0.09639592,2619.4,2618.3,2.7842]
[1645349520588,0.09639592,2619.1,2618.2,0.001443]
[1645349520794,0.09639592,2618.9,2618.2,0.001443]
[1645349520987,0.09639592,2618.7,2618.2,0.001443]
[1645349521186,0.09639592,2618.5,2617.6,2.9857]
[1645349521386,0.454,2618.6,2618.1,0.00144306]
[1645349521387,0.09639592,2618.2,2618.1,0.00144306]
[1645349522539,0.09639592,2618.2,2617.6,0.00144333]
[1645349523538,0.09639592,2618.2,2617.6,1.18890093]
[1645349523740,0.09639592,2618.2,2617.4,0.00685363]
[1645349524141,1.55039592,2618.2,2617.4,0.00685363]
[1645349524341,0.09639592,2618.0,2617.4,0.00685363]
[1645349524745,0.09639592,2617.7,2617.2,0.91316677]
[1645349524946,0.09639592,2617.7,2617.2,0.92002092]
[1645349525782,3.59639592,2617.7,2617.2,0.00685415]
[1645349525988,3.59639592,2617.7,2616.6,5.0445]
[1645349526185,2.55592452,2617.8,2616.4,7.32]
[1645349526186,0.09639592,2617.3,2616.4,7.32]
[1645349526384,0.09639592,2617.2,2616.9,0.00685481]
[1645349526781,0.99274909,2617.1,2616.9,0.00685481]
[1645349526986,0.09639592,2617.0,2616.9,0.00685481]
[1645349527184,0.09639592,2617.0,2616.4,7.32]
[1645349527384,0.09639592,2616.8,2616.4,7.32]
[1645349527582,0.09639592,2616.8,2616.5,0.00685662]
[1645349528381,0.09639592,2616.8,2616.4,0.89946578]
[1645349528981,0.09639592,2616.8,2615.9,0.00141305]
[1645349529839,0.454,2616.7,2615.9,0.00141305]
[1645349530038,0.09639592,2616.0,2615.9,0.00141305]
[1645349530239,0.09639592,2616.0,2615.6,0.5]
[1645349530240,0.09639592,2616.0,2615.7,0.00141305]
[1645349530438,0.09639592,2616.0,2615.6,0.5]
[1645349530840,0.454,2615.9,2615.5,384.09099034]
[1645349531046,0.09639592,2615.8,2615.5,384.09099034]
[1645349531245,1.0,2616.1,2615.8,0.19279184]
[1645349531442,0.454,2616.2,2615.8,0.19279184]
[1645349532136,1.56234392,2616.2,2615.8,0.19279184]
[1645349532537,1.86234392,2616.2,2615.8,0.19279184]
[1645349533186,0.95699,2616.1,2615.8,0.19279184]
[1645349533385,1.95699,2616.1,2615.8,0.19279184]
[1645349533590,5.45699,2616.1,2615.8,0.19279184]
[1645349533789,5.75699,2616.1,2615.8,0.19279184]
[1645349533986,1.91422,2616.0,2615.8,0.19279184]
[1645349534195,3.954,2615.9,2615.8,0.19279184]
[1645349534391,4.554,2615.9,2615.8,0.19279184]
[1645349534586,1.054,2615.9,2615.8,0.19279184]
[1645349534790,5.554,2615.9,2615.8,0.19279184]
[1645349535387,5.554,2615.9,2615.6,0.00141305]
[1645349535593,5.554,2615.9,2615.5,384.09099034]
[1645349535594,1.0,2615.8,2615.5,384.09099034]
[1645349535786,1.454,2615.8,2615.5,384.09099034]
[1645349535991,1.11463135,2615.7,2615.5,384.09099034]
[1645349536189,1.11463135,2615.7,2615.5,378.34672034]
[1645349536190,0.754,2615.6,2615.5,378.34672034]
[1645349536844,0.754,2615.6,2615.5,372.60223034]
[1645349537045,0.654,2615.6,2615.5,372.60223034]
[1645349537244,0.654,2615.6,2615.5,366.85753034]
[1645349537646,1.654,2615.6,2615.5,366.85753034]
[1645349537945,1.654,2615.6,2615.5,361.11313034]
[1645349538145,2.6114473,2615.6,2615.5,361.11313034]
[1645349538447,1.654,2615.6,2615.5,361.11313034]
[1645349539646,5.154,2615.6,2615.5,361.11313034]
[1645349540144,5.154,2615.6,2615.5,361.12173329]
[1645349542315,1.654,2615.6,2615.5,361.12173329]
[1645349542716,1.654,2615.6,2615.5,355.37748329]
[1645349542915,1.654,2615.6,2615.5,351.34394754]
[1645349542916,13.324,2615.6,2615.5,351.34394754]
[1645349543118,13.324,2615.6,2615.5,345.59861754]
[1645349543416,13.324,2615.6,2615.5,345.41129609]
[1645349543615,13.324,2615.6,2615.5,339.66586609]
[1645349543816,18.994,2615.6,2615.5,339.66586609]
[1645349544018,19.75618,2615.6,2615.5,339.66586609]
[1645349544238,19.75618,2615.6,2615.5,333.92058609]
[1645349544834,19.37388,2615.6,2615.5,328.18389917]
[1645349545438,25.89718,2615.6,2615.5,179.57810024]
[1645349545643,25.89718,2615.6,2614.0,0.00141305]
[1645349545644,0.95803,2615.0,2614.0,0.00141305]
[1645349545842,59.66806397,2613.4,2612.8,0.1912]
[1645349546037,59.66806397,2613.4,2612.9,1.47719313]
[1645349546038,1.141,2613.3,2612.9,1.47719313]
[1645349546239,1.91626,2614.1,2612.4,6.06]
[1645349546240,37.91692495,2614.0,2613.0,1.56849313]
[1645349546438,2.00205616,2614.9,2613.8,12.6647408]
[1645349546439,1.0,2614.9,2613.8,12.6647408]
[1645349546637,0.03000612,2615.0,2614.3,0.95984055]
[1645349546843,0.03000612,2615.0,2614.9,1.12266042]
[1645349547239,0.03000612,2615.0,2614.1,0.1912]
[1645349547736,0.03000612,2615.0,2613.8,0.1912]
[1645349547988,0.03000612,2615.0,2613.8,12.2435]
[1645349548183,0.03000612,2615.0,2613.8,15.7435]
[1645349548384,0.03000612,2615.0,2614.9,1.02093644]
[1645349548783,0.03000612,2615.0,2614.3,0.95714]
[1645349548983,0.03000612,2615.0,2614.4,0.1912]
[1645349549188,0.03000612,2615.0,2614.4,0.00185116]
[1645349549991,0.03000612,2615.0,2614.7,1.14978796]
[1645349550388,0.03000612,2615.0,2614.2,0.00752714]
[1645349551189,0.454,2615.4,2615.3,0.80485415]
[1645349551392,1.454,2615.7,2615.6,0.99528146]
[1645349551640,1.454,2615.7,2615.3,0.80485415]
[1645349551845,0.454,2615.7,2615.3,0.80485415]
[1645349552637,0.454,2615.7,2615.5,1.01155959]
[1645349553045,0.19960524,2616.3,2615.5,1.01155959]
[1645349553046,0.19960524,2616.3,2616.1,0.98371046]
[1645349553242,0.191,2616.7,2616.1,0.98371046]
[1645349553243,0.454,2616.7,2616.1,0.98371046]
[1645349553641,0.84449673,2616.7,2616.1,0.98371046]
[1645349553841,0.84449673,2616.7,2615.9,0.00178159]
[1645349554038,0.65349673,2616.7,2615.9,0.00178159]
[1645349554238,0.19949673,2616.7,2615.9,0.00178159]
[1645349554440,0.3856,2617.3,2615.9,0.00178159]
[1645349554840,0.19946946,2617.1,2616.6,1.05907636]
[1645349555040,0.20199341,2617.1,2616.6,1.05907636]
[1645349556090,0.19946946,2617.1,2616.6,1.05907636]
[1645349556292,0.20199364,2617.1,2616.6,1.05907636]
[1645349556689,0.00252418,2617.1,2616.6,1.05907636]
[1645349557399,1.15117,2617.3,2617.0,1.14089061]
[1645349557597,0.00252418,2617.1,2617.0,1.14089061]
[1645349558395,6.9565,2618.6,2617.0,1.14089061]
[1645349558396,0.191,2618.5,2618.3,1.16631706]
[1645349558600,0.1908,2618.7,2618.3,1.16631706]
[1645349558798,1.91201,2618.9,2618.3,1.16631706]
[1645349559762,0.1908,2619.0,2618.7,1.14791188]
[1645349559966,0.00240557,2618.7,2617.6,4.02083352]
[1645349560159,0.00240557,2618.7,2617.5,17.3523]
[1645349560360,0.00240557,2618.7,2617.5,12.6523]
[1645349560563,0.00240557,2618.7,2617.6,4.02083352]
[1645349560761,0.95578,2618.9,2617.7,5.0]
[1645349560962,0.95578,2618.9,2618.6,1.18000194]
[1645349562163,0.41157,2619.2,2618.6,1.18000194]
[1645349562567,0.00252421,2618.9,2618.6,1.18000194]
[1645349563297,0.71157,2619.2,2618.6,1.18000194]
[1645349563487,0.00252421,2618.9,2618.6,1.18000194]
[1645349563886,0.95830421,2618.9,2618.6,1.18000194]
[1645349564195,0.00252421,2618.9,2618.6,1.18000194]
[1645349564391,1.91164,2619.4,2618.6,1.18000194]
[1645349564589,1.13819996,2619.6,2619.3,0.94083574]
[1645349564796,11.44117585,2619.9,2619.3,0.94083574]
[1645349564797,0.1907,2619.8,2619.3,0.94083574]
[1645349564990,9.53012585,2619.9,2619.3,0.94083574]
[1645349565391,9.53012585,2619.9,2619.7,0.84212752]
[1645349566388,9.53012585,2619.9,2618.6,0.1907]
[1645349566644,9.53012585,2619.9,2618.4,4.4591]
[1645349566645,4.95137058,2619.8,2618.4,0.3]
[1645349566841,1.95563,2619.8,2618.4,0.3]
[1645349567042,1.95563,2619.8,2618.3,0.3]
[1645349567237,1.95563,2619.8,2618.0,1.4908]
[1645349567238,0.00252445,2619.4,2618.1,0.3]
[1645349567439,0.00252445,2619.4,2618.0,1.3]
[1645349567440,0.95815445,2619.4,2618.0,0.6]
[1645349567638,0.95815445,2619.4,2617.9,4.1319]
[1645349567639,0.95815445,2619.4,2618.6,1.0941772]
[1645349567842,1.25815445,2619.4,2618.6,1.0941772]
[1645349568038,3.99574058,2619.3,2617.9,3.5411]
[1645349568243,3.99574058,2619.3,2617.9,0.6]
[1645349568244,4.13394054,2619.3,2617.9,0.6]
[1645349568443,0.00252446,2619.1,2617.6,5.5732]
[1645349568640,0.95602,2618.7,2617.5,5.115]
[1645349568839,3.99574058,2618.6,2617.4,2.865]
[1645349569040,0.1908,2618.5,2617.1,0.0025]
[1645349569240,1.6448,2618.5,2617.9,0.91782385]
[1645349569548,1.6448,2618.5,2616.8,3.3292]
[1645349569549,0.00252451,2618.1,2616.8,3.3292]
[1645349569741,0.645,2618.0,2616.3,0.19713587]
[1645349569940,0.645,2618.0,2616.3,0.00613587]
[1645349570148,0.645,2618.0,2616.6,5.0]
[1645349570402,0.3,2618.2,2616.7,1.62513644]
[1645349570594,0.3,2618.1,2617.7,0.91031019]
[1645349570795,1.25613,2618.1,2617.7,0.91031019]
[1645349570994,0.95613,2618.1,2616.6,0.01248987]
[1645349571199,3.99574058,2618.0,2616.6,0.01248987]
[1645349571395,1.0,2617.9,2616.6,0.01248987]
[1645349571596,3.99574058,2617.8,2616.6,0.01248987]
[1645349571797,1.0,2617.7,2616.4,0.6]
[1645349571994,0.00252634,2617.4,2617.3,1.17523879]
[1645349572196,0.00252634,2617.4,2616.3,0.00613587]
[1645349572796,0.754,2617.3,2616.3,0.00613587]
[1645349573004,1.054,2617.3,2615.3,11.72145415]
[1645349573195,3.99574058,2617.2,2615.4,1.62540226]
[1645349573400,1.0,2617.1,2616.6,1.02048548]
[1645349573596,3.99574058,2617.0,2616.3,0.00184076]
[1645349573800,1.0,2616.9,2616.3,0.00184076]
[1645349573999,3.99574058,2616.8,2616.3,0.00184076]
[1645349574238,0.3,2616.8,2615.6,1.62556985]
[1645349574438,1.0,2616.7,2615.3,0.80485415]
[1645349574639,5.29574058,2616.8,2616.2,1.1690883]